fUST/lending_fUST_20250407
["ID","MTS","AMOUNT","RATE_DAILY","PERIOD"]
[357296030,1743994232465,-151.0,0.00030192,2]
[357296031,1743994232475,-200.0,0.00030192,2]
[357296032,1743994232488,-152.30081273,0.00030195,2]
[357296033,1743994232497,-3000.0,0.000302,3]
[357296034,1743994232507,-1004.480203,0.000302,2]
[357296035,1743994232516,-3000.0,0.0003021,3]
[357296036,1743994232526,-871.19391439,0.0003021,9]
[357296037,1743994232537,-3000.0,0.0003022,3]
[357296038,1743994232547,-160.0,0.0003022,3]
[357296039,1743994232558,-3000.0,0.0003023,3]
[357296040,1743994232568,-3000.0,0.0003024,3]
[357296041,1743994232577,-5108.774587,0.0003025,3]
[357296042,1743994232587,-1166.48425082,0.00030305,2]
[357296043,1743994232597,-151.0,0.0003074,2]
[357296044,1743994232606,-37917.0750145,0.0003085,2]
[357296045,1743994232616,-12527.9349248,0.0003086,2]
[357296046,1743994232626,-160.0,0.00030875,2]
[357296047,1743994232636,-160.0,0.00030875,2]
[357296048,1743994232646,-871.19391439,0.00030969,9]
[357296049,1743994232657,-500.0,0.00031107,7]
[357296050,1743994232667,-151.0,0.00031288,2]
[357296051,1743994232677,-500.0,0.00031548,7]
[357296052,1743994232686,-236.34064473,0.00031561,2]
[357296053,1743994232696,-871.19391439,0.00031728,10]
[357296054,1743994232706,-1000.0,0.000318,60]
[357296055,1743994232716,-151.0,0.00031836,2]
[357296056,1743994232726,-500.0,0.00031851,7]
[357296057,1743994232735,-500.0,0.00032083,7]
[357296058,1743994232745,-1009.26130461,0.00032179,5]
[357296059,1743994232755,-1010.48980762,0.00032179,5]
[357296060,1743994232823,-500.0,0.00032452,7]
[357296061,1743994232834,-871.19391439,0.00032486,10]
[357296062,1743994232843,-506.51851674,0.00032846,5]
[357296063,1743994232852,-1000.0,0.00032877,5]
[357296064,1743994232862,-1007.591762,0.00033179,2]
[357296065,1743994232871,-503.59863014,0.00033179,5]
[357296066,1743994232880,-1000.0,0.00033179,5]
[357296067,1743994232890,-1000.0,0.00033179,5]
[357296068,1743994232899,-1000.0,0.00033179,5]
[357296069,1743994232910,-1000.0,0.00033179,5]
[357296070,1743994232920,-504.76168684,0.00033179,5]
[357296071,1743994232929,-1000.0,0.00033179,5]
[357296072,1743994232937,-871.19391439,0.00033245,11]
[357296073,1743994232946,-1083.10274552,0.00033307,5]
[357296074,1743994232955,-1000.0,0.00033307,5]
[357296075,1743994232965,-1000.0,0.00033307,2]
[357296076,1743994232974,-151.0,0.00033307,2]
[357296077,1743994232984,-268.152568,0.00033502,14]
[357296078,1743994232993,-1166.48425082,0.00033502,2]
[357296079,1743994233002,-2000.0,0.00033662,4]
[357296080,1743994233012,-508.32895317,0.00033722,5]
[357296081,1743994233022,-199.75237207,0.00033814,2]
[357296082,1743994233031,-871.19391439,0.00034003,11]
[357296083,1743994233041,-169.801801,0.00034247,2]
[357296084,1743994233051,-871.19391439,0.00034762,12]
[357296085,1743994233060,-419.28457398,0.00034978,2]
[357296086,1743994233070,-871.19391439,0.00035521,12]
[357296087,1743994233079,-500.0,0.00035616,7]
[357296088,1743994233089,-255.07872986,0.00035616,7]
[357296089,1743994233099,-500.0,0.00035824,7]
[357296090,1743994233109,-974.838445,0.0003589,2]
[357296091,1743994233119,-176.33302017,0.00036,120]
[357296092,1743994233129,-198.69179645,0.00036,30]
[357296093,1743994233139,-176.0,0.00036,2]
[357296094,1743994233149,-1324.1731022,0.000362,98]
[357296095,1743994233160,-1324.1731022,0.000362,98]
[357296096,1743994233169,-1324.1731022,0.000362,98]
[357296097,1743994233178,-871.19391439,0.00036279,13]
[357296098,1743994233189,-1166.48425082,0.000367,2]
[357296099,1743994233199,-125372.97769963,0.00037,2]
[357296100,1743994233217,-44795.62231292,0.00037,2]
[357296131,1743994237718,-588.24797202,0.00024899,2]
[357296132,1743994237728,-500.0,0.00027815,2]
[357296133,1743994237738,-306.61015635,0.00027815,2]
[357296134,1743994237749,-79831.39998745,0.00037,2]
[357296135,1743994237759,-152.687285,0.00037,14]
[357296136,1743994237768,-151.0,0.00037,2]
[357296137,1743994237778,-871.19391439,0.00037038,13]
[357296138,1743994237788,-677.08333333,0.000375,7]
[357296139,1743994237798,-419.36665037,0.000375,7]
[357296140,1743994237807,-500.0,0.00037621,5]
[357296142,1743994237816,-500.0,0.00037631,7]
[357296144,1743994237826,-871.19391439,0.00037797,14]
[357296145,1743994237835,-503.06573108,0.00037889,5]
[357296146,1743994237844,-501.96030466,0.00037889,5]
[357296148,1743994237853,-500.0,0.00037889,5]
[357296150,1743994237863,-500.0,0.00037889,5]
[357296151,1743994237873,-481.592,0.0003797,50]
[357296152,1743994237883,-171.31420164,0.0003797,50]
[357296153,1743994237892,-1333.0,0.00038,2]
[357296154,1743994237902,-546.97977792,0.00038,5]
[357296155,1743994237911,-500.0,0.00038,5]
[357296156,1743994237920,-504.67923532,0.00038,5]
[357296157,1743994237930,-500.0,0.00038,5]
[357296158,1743994237940,-517.0554717,0.00038,5]
[357296159,1743994237950,-502.67362804,0.00038,5]
[357296160,1743994237959,-500.0,0.00038,5]
[357296161,1743994237969,-162.56171215,0.00038,5]
[357296162,1743994237979,-500.78165587,0.00038,5]
[357296163,1743994237989,-500.0,0.00038,5]
[357296164,1743994237999,-500.0,0.00038,5]
[357296165,1743994238009,-1500.0,0.00038356,5]
[357296166,1743994238019,-153.0,0.0003841,30]
[357296167,1743994238029,-426.4227378,0.0003841,30]
[357296168,1743994238038,-153.0,0.0003841,30]
[357296169,1743994238047,-871.19391439,0.00038555,14]
[357296170,1743994238057,-180.0,0.00038825,20]
[357296171,1743994238066,-807.57543821,0.00038865,7]
[357296172,1743994238075,-250000.0,0.00039,2]
[357296173,1743994238085,-157.657056,0.00039,2]
[357296174,1743994238095,-160.0,0.00039067,3]
[357296175,1743994238104,-588.0327797,0.00039095,30]
[357296176,1743994238113,-563.9791657,0.00039095,30]
[357296177,1743994238123,-563.9791657,0.00039095,30]
[357296178,1743994238132,-563.9791657,0.00039095,30]
[357296179,1743994238142,-563.9791657,0.00039095,30]
[357296180,1743994238151,-563.9791657,0.00039095,30]
[357296181,1743994238160,-563.9791657,0.00039095,30]
[357296182,1743994238170,-153.0,0.00039119,31]
[357296183,1743994238179,-153.0,0.00039119,31]
[357296184,1743994238189,-1007.47,0.000392,120]
[357296185,1743994238199,-153.0,0.00039232,30]
[357296186,1743994238209,-213.2113689,0.00039232,30]
[357296187,1743994238218,-213.2113689,0.00039232,30]
[357296188,1743994238228,-213.2113689,0.00039232,30]
[357296189,1743994238238,-213.2113689,0.00039232,30]
[357296190,1743994238247,-213.2113689,0.00039232,30]
[357296191,1743994238257,-191.6183187,0.00039232,30]
[357296192,1743994238267,-871.19391439,0.00039314,15]
[357296193,1743994238276,-1324.1731022,0.00039567,117]
[357296194,1743994238286,-151.0,0.000398,10]
[357296195,1743994238296,-1166.48425082,0.00039897,2]
[357296196,1743994238306,-199.75237207,0.000399,2]
[357296197,1743994238316,-156.5843743,0.0003999,30]
[357296198,1743994238326,-156.5843743,0.0003999,30]
[357296199,1743994238335,-156.5843743,0.0003999,30]
[357296200,1743994238345,-156.5843743,0.0003999,30]
[357296201,1743994238355,-156.5843743,0.0003999,30]
[357296202,1743994238365,-500.0,0.00039992,7]
[357296203,1743994238375,-1140.0,0.0004,120]
[357296204,1743994238384,-210101.66827439,0.0004,60]
[357296205,1743994238394,-328.379,0.0004,120]
[357296206,1743994238404,-3000.0,0.0004,120]
[357296207,1743994238415,-153.0,0.00040025,30]
[357296208,1743994238425,-153.0,0.00040025,30]
[357296209,1743994238434,-153.0,0.00040025,30]
[357296210,1743994238444,-153.0,0.00040025,30]
[357296211,1743994238454,-306.0,0.00040025,30]
[357296212,1743994238464,-520.6673619,0.00040025,30]
[357296213,1743994238473,-153.0,0.00040025,30]
[357296214,1743994238485,-871.19391439,0.00040072,15]
[357296215,1743994238497,-160.0,0.000401,30]
[357296216,1743994238507,-2482.5922887,0.00040393,4]
[357296217,1743994238517,-520.01995686,0.0004055,60]
[357296218,1743994238529,-26440.49278537,0.00040684,2]
[357296219,1743994238539,-871.19391439,0.00040831,16]
[357296220,1743994238550,-156.5843743,0.00040876,30]
[357296221,1743994238560,-156.5843743,0.00040876,30]
[357296222,1743994238571,-156.5843743,0.00040876,30]
[357296223,1743994238582,-563.9791657,0.00040876,30]
[357296224,1743994238592,-156.5843743,0.00040876,30]
[357296225,1743994238602,-563.9791657,0.00040876,30]
[357296226,1743994238613,-156.5843743,0.00040876,30]
[357296227,1743994238622,-563.9791657,0.00040876,30]
[357296228,1743994238632,-563.9791657,0.00040876,30]
[357296229,1743994238642,-156.5843743,0.00040876,30]
[357296230,1743994238651,-156.5843743,0.00040876,30]
[357296231,1743994238663,-563.9791657,0.00040876,30]
[357296232,1743994238672,-156.5843743,0.00040876,30]
[357296233,1743994238682,-1127.9583314,0.00040876,30]
[357296234,1743994238692,-156.5843743,0.00040876,30]
[357296235,1743994238702,-563.9791657,0.00040876,30]
[357296236,1743994238712,-156.5843743,0.00040876,30]
[357296237,1743994238723,-563.9791657,0.00040876,30]
[357296238,1743994238733,-156.5843743,0.00040876,30]
[357296239,1743994238743,-563.9791657,0.00040876,30]
[357296240,1743994238754,-156.5843743,0.00040876,30]
[357296241,1743994238764,-156.5843743,0.00040876,30]
[357296242,1743994238775,-464.8551807,0.00040876,30]
[357296243,1743994238786,-363.5,0.0004088,60]
[357296244,1743994238797,-151.0,0.000409,11]
[357296245,1743994238806,-157.602862,0.0004091,2]
[357296246,1743994238817,-1000.0,0.0004092,120]
[357296247,1743994238828,-151.0,0.00040989,2]
[357296248,1743994238839,-151.0,0.00040989,2]
[357296249,1743994238849,-6231.72699886,0.0004099,2]
[357296250,1743994238859,-10371.2096045,0.0004099,2]
[357296251,1743994238869,-10371.2096045,0.0004099,2]
[357296252,1743994238879,-10371.2096045,0.0004099,2]
[357296253,1743994238889,-10371.2096045,0.0004099,2]
[357296254,1743994238899,-10371.2096045,0.0004099,2]
[357296255,1743994238910,-10371.2096045,0.0004099,2]
[357296256,1743994238921,-10371.2096045,0.0004099,2]
[357296257,1743994238930,-1708.0,0.00041,2]
[357296258,1743994238941,-11098.0,0.00041,120]
[357296259,1743994238951,-677.08333333,0.00041,30]
[357296260,1743994238961,-1070.0,0.0004107,120]
[357296261,1743994238972,-500.0,0.00041073,5]
[357296262,1743994238982,-500.94854607,0.00041073,5]
[357296263,1743994238993,-500.0,0.00041073,5]
[357296264,1743994239003,-1070.0,0.0004108,120]
[357296265,1743994239013,-1070.0,0.0004109,120]
[357296266,1743994239023,-1000.0,0.00041093,120]
[357296267,1743994239033,-1000.0,0.00041094,120]
[357296268,1743994239043,-500.0,0.00041095,7]
[357296269,1743994239054,-500.0,0.00041095,7]
[357296270,1743994239064,-253.19865148,0.00041095,7]
[357296271,1743994239075,-500.0,0.00041095,7]
[357296272,1743994239086,-500.0,0.00041095,7]
[357296273,1743994239096,-500.0,0.00041095,7]
[357296274,1743994239106,-500.0,0.00041095,7]
[357296275,1743994239116,-500.0,0.00041095,7]
[357296276,1743994239126,-500.0,0.00041095,7]
[357296277,1743994239138,-500.0,0.00041095,7]
[357296278,1743994239148,-500.0,0.00041095,7]
[357296279,1743994239159,-500.0,0.00041095,7]
[357296280,1743994239174,-500.0,0.00041095,7]
[357296281,1743994239184,-500.0,0.00041095,7]
[357296282,1743994239195,-181.62774334,0.00041095,7]
[357296283,1743994239206,-534.82869976,0.00041095,7]
[357296284,1743994239216,-502.86795499,0.00041095,7]
[357296285,1743994239226,-502.98401044,0.00041095,7]
[357296286,1743994239236,-579.38258849,0.00041095,7]
[357296287,1743994239246,-506.16430182,0.00041095,7]
[357296288,1743994239257,-413.08154173,0.00041095,7]
[357296289,1743994239267,-500.0,0.00041095,7]
[357296290,1743994239277,-502.58064934,0.00041095,7]
[357296291,1743994239288,-500.0,0.00041095,7]
[357296292,1743994239298,-500.0,0.00041095,7]
[357296293,1743994239308,-219.81624616,0.00041095,7]
[357296294,1743994239318,-512.01121079,0.00041095,7]
[357296296,1743994239327,-500.0,0.00041095,7]
[357296298,1743994239337,-500.0,0.00041095,7]
[357296300,1743994239347,-500.0,0.00041095,7]
[357296302,1743994239357,-297.02979157,0.00041095,7]
[357296305,1743994239367,-500.0,0.00041095,7]
[357296307,1743994239379,-500.0,0.00041095,7]
[357296309,1743994239389,-441.20200781,0.00041095,7]
[357296311,1743994239399,-500.0,0.00041095,7]
[357296313,1743994239409,-500.0,0.00041095,7]
[357296315,1743994239422,-500.0,0.00041095,7]
[357296317,1743994239433,-500.0,0.00041095,7]
[357296319,1743994239443,-1227.41,0.00041095,7]
[357296321,1743994239453,-500.0,0.00041095,7]
[357296323,1743994239463,-500.0,0.00041095,7]
[357296325,1743994239474,-500.0,0.00041095,7]
[357296327,1743994239487,-500.0,0.00041095,7]
[357296329,1743994239498,-500.0,0.00041095,7]
[357296331,1743994239508,-500.0,0.00041095,7]
[357296334,1743994239518,-500.0,0.00041095,7]
[357296335,1743994239529,-500.0,0.00041095,7]
[357296336,1743994239539,-500.0,0.00041095,7]
[357296337,1743994239549,-500.0,0.00041095,7]
[357296339,1743994239559,-500.0,0.00041095,7]
[357296341,1743994239569,-500.0,0.00041095,7]
[357296343,1743994239580,-500.0,0.00041095,7]
[357296345,1743994239589,-500.0,0.00041095,7]
[357296348,1743994239599,-500.0,0.00041095,7]
[357296351,1743994239610,-500.0,0.00041095,7]
[357296354,1743994239619,-500.0,0.00041095,7]
[357296356,1743994239629,-500.0,0.00041095,7]
[357296358,1743994239638,-500.0,0.00041095,7]
[357296360,1743994239648,-214.102875,0.00041095,7]
[357296362,1743994239658,-500.0,0.00041095,7]
[357296364,1743994239670,-500.0,0.00041095,7]
[357296366,1743994239680,-500.0,0.00041095,7]
[357296368,1743994239690,-500.0,0.00041095,7]
[357296370,1743994239700,-500.0,0.00041095,7]
[357296373,1743994239711,-500.0,0.00041095,7]
[357296375,1743994239721,-500.0,0.00041095,7]
[357296377,1743994239731,-500.0,0.00041095,7]
[357296379,1743994239741,-500.0,0.00041095,7]
[357296381,1743994239751,-515.65381673,0.00041095,7]
[357296383,1743994239761,-500.0,0.00041095,7]
[357296385,1743994239771,-500.0,0.00041095,7]
[357296387,1743994239782,-815.63,0.00041095,7]
[357296389,1743994239793,-815.63,0.00041095,7]
[357296391,1743994239803,-500.0,0.00041095,7]
[357296393,1743994239813,-815.63,0.00041095,7]
[357296396,1743994239824,-815.63,0.00041095,7]
[357296398,1743994239833,-815.63,0.00041095,7]
[357296400,1743994239844,-815.63,0.00041095,7]
[357296402,1743994239854,-815.63,0.00041095,7]
[357296404,1743994239864,-815.63,0.00041095,7]
[357296406,1743994239874,-815.63,0.00041095,7]
[357296408,1743994239884,-815.63,0.00041095,7]
[357296410,1743994239894,-815.63,0.00041095,7]
[357296412,1743994239904,-815.63,0.00041095,7]
[357296414,1743994239917,-815.63,0.00041095,7]
[357296416,1743994239927,-815.63,0.00041095,7]
[357296418,1743994239936,-815.63,0.00041095,7]
[357296420,1743994239946,-815.63,0.00041095,7]
[357296423,1743994239956,-815.63,0.00041095,7]
[357296425,1743994239966,-815.63,0.00041095,7]
[357296427,1743994239976,-815.63,0.00041095,7]
[357296429,1743994239986,-815.63,0.00041095,7]
[357296431,1743994239996,-815.63,0.00041095,7]
[357296433,1743994240006,-815.63,0.00041095,7]
[357296435,1743994240016,-815.63,0.00041095,7]
[357296437,1743994240025,-815.65996292,0.00041095,7]
[357296440,1743994240035,-500.0,0.00041095,7]
[357296442,1743994240045,-500.0,0.00041095,7]
[357296444,1743994240055,-500.0,0.00041095,7]
[357296446,1743994240065,-500.0,0.00041095,7]
[357296448,1743994240075,-500.0,0.00041095,7]
[357296451,1743994240085,-500.0,0.00041095,7]
[357296453,1743994240095,-500.0,0.00041095,7]
[357296455,1743994240106,-500.0,0.00041095,7]
[357296457,1743994240117,-500.0,0.00041095,7]
[357296459,1743994240127,-500.0,0.00041095,7]
[357296461,1743994240137,-500.0,0.00041095,7]
[357296463,1743994240147,-500.0,0.00041095,7]
[357296465,1743994240156,-500.0,0.00041095,7]
[357296467,1743994240170,-500.0,0.00041095,7]
[357296469,1743994240180,-500.0,0.00041095,7]
[357296471,1743994240190,-500.0,0.00041095,7]
[357296473,1743994240201,-500.0,0.00041095,7]
[357296475,1743994240210,-500.0,0.00041095,7]
[357296477,1743994240220,-500.0,0.00041095,7]
[357296479,1743994240230,-782.1,0.00041095,7]
[357296482,1743994240242,-887.8,0.00041095,7]
[357296484,1743994240252,-500.0,0.00041095,7]
[357296486,1743994240262,-548.02710866,0.00041095,7]
[357296488,1743994240272,-500.0,0.00041095,7]
[357296490,1743994240282,-500.0,0.00041095,7]
[357296492,1743994240292,-500.0,0.00041095,7]
[357296494,1743994240303,-500.0,0.00041095,7]
[357296496,1743994240313,-500.0,0.00041095,7]
[357296498,1743994240323,-1247.51,0.00041095,7]
[357296500,1743994240334,-500.0,0.00041095,7]
[357296502,1743994240344,-500.0,0.00041095,7]
[357296504,1743994240355,-500.0,0.00041095,7]
[357296505,1743994240365,-500.0,0.00041095,7]
[357296506,1743994240375,-453.2815103,0.00041095,7]
[357296507,1743994240385,-500.0,0.00041095,7]
[357296509,1743994240395,-500.0,0.00041095,7]
[357296511,1743994240405,-500.0,0.00041095,7]
[357296513,1743994240420,-500.0,0.00041095,7]
[357296515,1743994240430,-500.0,0.00041095,7]
[357296517,1743994240440,-500.0,0.00041095,7]
[357296520,1743994240451,-500.0,0.00041095,7]
[357296522,1743994240461,-500.0,0.00041095,7]
[357296524,1743994240472,-500.0,0.00041095,7]
[357296526,1743994240485,-1117.56,0.00041095,7]
[357296528,1743994240496,-500.0,0.00041095,7]
[357296530,1743994240506,-500.0,0.00041095,7]
[357296532,1743994240516,-500.0,0.00041095,7]
[357296534,1743994240527,-503.05619129,0.00041095,7]
[357296536,1743994240538,-500.0,0.00041095,7]
[357296559,1743994240746,-500.0,0.00041095,7]
[357296561,1743994240756,-500.0,0.00041095,7]
[357296563,1743994240766,-500.0,0.00041095,7]
[357296565,1743994240775,-500.0,0.00041095,7]
[357296567,1743994240785,-500.0,0.00041095,7]
[357296569,1743994240795,-500.0,0.00041095,7]
[357296571,1743994240804,-1147.82,0.00041095,7]
[357296573,1743994240814,-487.27598528,0.00041095,7]
[357296576,1743994240824,-500.0,0.00041095,7]
[357296578,1743994240834,-604.42953586,0.00041095,7]
[357296580,1743994240844,-598.6,0.00041095,7]
[357296582,1743994240854,-500.0,0.00041095,7]
[357296584,1743994240863,-500.0,0.00041095,7]
[357296586,1743994240872,-500.0,0.00041095,7]
[357296588,1743994240882,-500.0,0.00041095,7]
[357296590,1743994240892,-500.0,0.00041095,7]
[357296592,1743994240901,-500.0,0.00041095,7]
[357296594,1743994240912,-500.0,0.00041095,7]
[357296596,1743994240922,-500.0,0.00041095,7]
[357296598,1743994240931,-533.65,0.00041095,7]
[357296600,1743994240941,-1331.06,0.00041095,7]
[357296602,1743994240950,-500.0,0.00041095,7]
[357296604,1743994240960,-500.0,0.00041095,7]
[357296606,1743994240969,-500.0,0.00041095,7]
[357296608,1743994240979,-500.0,0.00041095,7]
[357296610,1743994240989,-500.0,0.00041095,7]
[357296612,1743994240998,-500.0,0.00041095,7]
[357296614,1743994241007,-500.0,0.00041095,7]
[357296616,1743994241017,-538.09423832,0.00041095,7]
[357296618,1743994241027,-500.0,0.00041095,7]
[357296620,1743994241037,-500.0,0.00041095,7]
[357296622,1743994241046,-500.0,0.00041095,7]
[357296624,1743994241056,-500.0,0.00041095,7]
[357296626,1743994241066,-500.0,0.00041095,7]
[357296628,1743994241075,-500.0,0.00041095,7]
[357296630,1743994241084,-500.0,0.00041095,7]
[357296632,1743994241094,-500.0,0.00041095,7]
[357296634,1743994241103,-500.0,0.00041095,7]
[357296636,1743994241113,-500.0,0.00041095,7]
[357296637,1743994241122,-508.03435252,0.00041095,7]
[357296638,1743994241132,-500.0,0.00041095,7]
[357296639,1743994241143,-500.0,0.00041095,7]
[357296641,1743994241152,-300.15699329,0.00041095,7]
[357296643,1743994241162,-500.0,0.00041095,7]
[357296645,1743994241171,-531.5,0.00041095,7]
[357296647,1743994241181,-604.39,0.00041095,7]
[357296649,1743994241190,-500.0,0.00041095,7]
[357296651,1743994241200,-500.0,0.00041095,7]
[357296653,1743994241209,-500.0,0.00041095,7]
[357296655,1743994241219,-505.20530664,0.00041095,7]
[357296657,1743994241228,-1433.82,0.00041095,7]
[357296659,1743994241238,-735.4,0.00041095,7]
[357296661,1743994241248,-500.0,0.00041095,7]
[357296664,1743994241260,-500.0,0.00041095,7]
[357296666,1743994241271,-500.0,0.00041095,7]
[357296668,1743994241282,-500.0,0.00041095,7]
[357296670,1743994241291,-500.0,0.00041095,7]
[357296672,1743994241300,-500.0,0.00041095,7]
[357296674,1743994241309,-790.08,0.00041095,7]
[357296676,1743994241319,-500.0,0.00041095,7]
[357296678,1743994241329,-564.44,0.00041095,7]
[357296679,1743994241338,-500.0,0.00041095,7]
[357296680,1743994241347,-500.0,0.00041095,7]
[357296681,1743994241357,-500.0,0.00041095,7]
[357296682,1743994241366,-500.0,0.00041095,7]
[357296683,1743994241376,-909.06,0.00041095,7]
[357296684,1743994241386,-500.0,0.00041095,7]
[357296685,1743994241396,-500.0,0.00041095,7]
[357296686,1743994241406,-1071.4,0.00041095,7]
[357296687,1743994241416,-500.0,0.00041095,7]
[357296688,1743994241426,-508.14790576,0.00041095,7]
[357296689,1743994241435,-500.0,0.00041095,7]
[357296690,1743994241445,-1743.55,0.00041095,7]
[357296691,1743994241455,-500.0,0.00041095,7]
[357296692,1743994241465,-649.9,0.00041095,7]
[357296693,1743994241475,-500.0,0.00041095,7]
[357296694,1743994241486,-500.0,0.00041095,7]
[357296695,1743994241499,-1226.72,0.00041095,7]
[357296696,1743994241509,-1000.0,0.00041095,30]
[357296697,1743994241519,-500.0,0.00041095,7]
[357296698,1743994241530,-500.0,0.00041095,7]
[357296699,1743994241540,-1092.61,0.00041095,7]
[357296700,1743994241549,-521.60668539,0.00041095,7]
[357296701,1743994241559,-494.33710955,0.00041095,7]
[357296702,1743994241569,-500.0,0.00041095,120]
[357296703,1743994241579,-500.0,0.00041095,7]
[357296704,1743994241589,-500.0,0.00041095,7]
[357296705,1743994241598,-500.0,0.00041095,7]
[357296706,1743994241607,-500.0,0.00041095,7]
[357296707,1743994241617,-667.39,0.00041095,7]
[357296708,1743994241626,-507.46006793,0.00041095,7]
[357296709,1743994241636,-500.0,0.00041095,7]
[357296710,1743994241645,-500.0,0.00041095,7]
[357296711,1743994241654,-500.0,0.00041095,7]
[357296712,1743994241665,-621.82,0.00041095,7]
[357296713,1743994241675,-500.0,0.00041095,7]
[357296714,1743994241684,-525.88,0.00041095,7]
[357296715,1743994241694,-500.0,0.00041095,7]
[357296716,1743994241703,-506.08818701,0.00041095,7]
[357296717,1743994241713,-500.0,0.00041095,7]
[357296718,1743994241723,-500.0,0.00041095,7]
[357296719,1743994241733,-500.0,0.00041095,7]
[357296720,1743994241743,-500.0,0.00041095,7]
[357296721,1743994241753,-228.35134872,0.00041095,7]
[357296722,1743994241762,-500.0,0.00041095,7]
[357296723,1743994241772,-534.99,0.00041095,7]
[357296724,1743994241782,-500.0,0.00041095,7]
[357296725,1743994241792,-500.0,0.00041095,7]
[357296726,1743994241802,-500.0,0.00041095,7]
[357296727,1743994241811,-500.0,0.00041095,7]
[357296728,1743994241821,-1356.02,0.00041095,7]
[357296729,1743994241831,-546.45,0.00041095,7]
[357296730,1743994241841,-500.0,0.00041095,7]
[357296731,1743994241851,-500.0,0.00041095,7]
[357296732,1743994241861,-2532.82,0.00041095,7]
[357296733,1743994241870,-500.0,0.00041095,7]
[357296734,1743994241880,-500.0,0.00041095,7]
[357296735,1743994241890,-500.0,0.00041095,7]
[357296736,1743994241899,-500.0,0.00041095,7]
[357296737,1743994241909,-614.93,0.00041095,7]
[357296738,1743994241921,-500.0,0.00041095,7]
[357296739,1743994241931,-500.0,0.00041095,7]
[357296740,1743994241941,-500.0,0.00041095,2]
[357296741,1743994241950,-500.0,0.00041095,7]
[357296742,1743994241960,-720.64,0.00041095,7]
[357296743,1743994241969,-500.0,0.00041095,7]
[357296744,1743994241979,-500.0,0.00041095,7]
[357296745,1743994241989,-500.0,0.00041095,7]
[357296746,1743994241998,-1288.8,0.00041095,7]
[357296747,1743994242009,-800.31,0.00041095,7]
[357296748,1743994242019,-1000.0,0.00041095,7]
[357296749,1743994242028,-1002.88,0.00041095,7]
[357296750,1743994242039,-381.63837929,0.00041095,7]
[357296751,1743994242049,-2620.9,0.00041095,7]
[357296752,1743994242059,-500.0,0.00041095,7]
[357296753,1743994242070,-500.0,0.00041095,7]
[357296754,1743994242080,-500.0,0.00041095,7]
[357296755,1743994242089,-2207.75,0.00041095,7]
[357296756,1743994242099,-240.21541089,0.00041095,7]
[357296757,1743994242108,-500.0,0.00041095,7]
[357296758,1743994242118,-500.0,0.00041095,7]
[357296759,1743994242128,-500.0,0.00041095,7]
[357296760,1743994242138,-500.0,0.00041095,7]
[357296761,1743994242147,-500.0,0.00041095,7]
[357296762,1743994242157,-300.0,0.00041095,30]
[357296763,1743994242167,-562.41490378,0.00041095,7]
[357296764,1743994242176,-500.0,0.00041095,7]
[357296765,1743994242186,-500.0,0.00041095,7]
[357296766,1743994242196,-2042.25,0.00041095,7]
[357296767,1743994242206,-500.0,0.00041095,7]
[357296769,1743994242215,-500.0,0.00041095,7]